bitfinex-derivatives/quotes_BTCF0:USTF0_20250713
["timestamp","ask_amount","ask_price","bid_price","bid_amount"]
[1752394862297,1.40456988,117930.0,117920.0,0.00372402]
[1752394862893,1.40256988,117930.0,117920.0,0.00372402]
[1752394863098,1.40456988,117930.0,117920.0,0.00372402]
[1752394863598,1.40456988,117930.0,117920.0,0.02652402]
[1752394866499,1.40256988,117930.0,117920.0,0.02652402]
[1752394867199,1.40256988,117930.0,117920.0,0.00372402]
[1752394876104,1.40256988,117930.0,117920.0,0.00364639]
[1752394877510,1.40556988,117930.0,117920.0,0.00364639]
[1752394878410,1.40556988,117930.0,117920.0,0.00372402]
[1752394879913,1.40566524,117930.0,117920.0,0.00372402]
[1752394881614,1.40466524,117930.0,117920.0,0.00372402]
[1752394881815,1.40766524,117930.0,117920.0,0.00372402]
[1752394882613,1.40466524,117930.0,117920.0,0.00372402]
[1752394882915,1.40766524,117930.0,117920.0,0.00372402]
[1752394884514,1.40466524,117930.0,117920.0,0.00372402]
[1752394884716,1.40766524,117930.0,117920.0,0.00372402]
[1752394885215,1.40466524,117930.0,117920.0,0.00372402]
[1752394885417,1.40766524,117930.0,117920.0,0.00372402]
[1752394885715,1.40466524,117930.0,117920.0,0.00372402]
[1752394886014,1.40766524,117930.0,117920.0,0.00372402]
[1752394891720,1.5780961,117930.0,117920.0,0.00372402]
[1752394893217,0.1997471,117920.0,117910.0,0.0002]
[1752394893419,0.2727615,117910.0,117900.0,0.08852238]
[1752394893614,1.98071394,117910.0,117900.0,0.08832238]
[1752394893816,1.81028308,117910.0,117900.0,0.08832238]
[1752394894017,1.98071394,117910.0,117900.0,0.08832238]
[1752394894914,1.98071394,117910.0,117900.0,0.11865238]
[1752394895120,1.98071394,117910.0,117900.0,0.28822828]
[1752394895320,1.98071394,117910.0,117900.0,0.4834538]
[1752394895921,1.98071394,117910.0,117900.0,0.3138779]
[1752394896221,1.98171394,117910.0,117900.0,0.4834538]
[1752394896416,1.98171394,117910.0,117900.0,0.3138779]
[1752394896921,1.98171394,117910.0,117900.0,0.4834538]
[1752394898719,1.98171394,117910.0,117900.0,0.3138779]
[1752394899416,1.98171394,117910.0,117900.0,0.4834538]
[1752394899818,1.98171394,117910.0,117900.0,0.3138779]
[1752394900323,1.98171394,117910.0,117900.0,0.4834538]
[1752394902523,1.98071394,117910.0,117900.0,0.4834538]
[1752394902724,1.81128308,117910.0,117900.0,0.4834538]
[1752394902925,1.98171394,117910.0,117900.0,0.4834538]
[1752394903128,1.98271394,117910.0,117900.0,0.4834538]
[1752394904328,1.98271394,117910.0,117900.0,0.46579142]
[1752394907227,1.98279831,117910.0,117900.0,0.46579142]
[1752394909929,1.81236745,117910.0,117900.0,0.46579142]
[1752394910230,1.98279831,117910.0,117900.0,0.46579142]
[1752394914029,0.65688745,117910.0,117900.0,0.63622228]
[1752394914230,0.87452745,117910.0,117900.0,0.63622228]
[1752394914431,1.23532745,117910.0,117900.0,0.63622228]
[1752394914636,0.87452745,117910.0,117900.0,0.63622228]
[1752394915134,1.23532745,117910.0,117900.0,0.63622228]
[1752394917336,0.87452745,117910.0,117900.0,0.63622228]
[1752394918239,0.87352745,117910.0,117900.0,0.63622228]
[1752394918938,0.87252745,117910.0,117900.0,0.63622228]
[1752394919133,0.87352745,117910.0,117900.0,0.63622228]
[1752394919336,0.26817745,117910.0,117900.0,0.63622228]
[1752394919535,0.84537745,117910.0,117900.0,0.63622228]
[1752394919742,0.86919745,117910.0,117900.0,0.63622228]
[1752394920842,0.86919745,117910.0,117900.0,0.63622228]
[1752394922244,1.03962831,117910.0,117900.0,0.46579142]
[1752394922439,1.40042831,117910.0,117900.0,0.46579142]
[1752394924143,1.40142831,117910.0,117900.0,0.46579142]
[1752394924444,1.40142831,117910.0,117900.0,0.29536056]
[1752394924741,1.40142831,117910.0,117900.0,0.46579142]
[1752394924950,1.40042831,117910.0,117900.0,0.46579142]
[1752394925344,1.40042831,117910.0,117900.0,0.21907056]
[1752394925546,1.40042831,117910.0,117900.0,0.19441056]
[1752394925746,1.40042831,117910.0,117900.0,0.2122204]
[1752394927146,1.40142831,117910.0,117900.0,0.2122204]
[1752394927643,1.57185917,117910.0,117900.0,0.0426445]
[1752394927838,1.57185917,117910.0,117900.0,0.01784984]
[1752394928241,1.57285917,117910.0,117900.0,0.01784984]
[1752394929645,1.57285917,117910.0,117900.0,4e-05]
[1752394932145,1.04162831,117910.0,117900.0,4e-05]
[1752394932450,1.76322831,117910.0,117900.0,4e-05]
[1752394937150,1.78813299,117910.0,117900.0,4e-05]
[1752394937949,1.76322831,117910.0,117900.0,4e-05]
[1752394939851,1.93365917,117910.0,117900.0,4e-05]
[1752394940554,1.76322831,117910.0,117900.0,4e-05]
[1752394941749,0.2720459,117900.0,117890.0,0.02434001]
[1752394941953,0.99503357,117900.0,117890.0,0.02414001]
[1752394942252,0.2016803,117890.0,117880.0,0.85196179]
[1752394942451,0.2016803,117890.0,117880.0,0.85176179]
[1752394942452,0.87126625,117890.0,117880.0,0.85176179]
[1752394942852,1.04169711,117890.0,117880.0,0.85176179]
[1752394943150,1.04169711,117890.0,117880.0,0.80936139]
[1752394943853,1.04169711,117890.0,117880.0,0.81036139]
[1752394944255,1.04169711,117890.0,117880.0,0.81236139]
[1752394944751,1.04169711,117890.0,117880.0,0.83644996]
[1752394947553,0.87126625,117890.0,117880.0,1.00688082]
[1752394947757,0.8501403,117890.0,117880.0,1.00688082]
[1752394952060,1.02057116,117890.0,117880.0,1.00688082]
[1752394952455,1.02057116,117890.0,117880.0,0.6660191]
[1752394952658,1.02057116,117890.0,117880.0,1.00688082]
[1752394952957,1.38137116,117890.0,117880.0,1.00688082]
[1752394955164,1.40252689,117890.0,117880.0,1.00688082]
[1752394956462,0.87129603,117890.0,117880.0,1.00688082]
[1752394958361,1.23209603,117890.0,117880.0,1.00688082]
[1752394958961,0.87129603,117890.0,117880.0,1.00688082]
[1752394963868,1.04172689,117890.0,117880.0,0.20034089]
[1752394964071,1.40252689,117890.0,117880.0,0.20034089]
[1752394964563,1.40252689,117890.0,117880.0,0.37077175]
[1752394970274,1.40252689,117890.0,117880.0,0.47351175]
[1752394970475,1.40252689,117890.0,117880.0,0.64394261]
[1752394970871,0.12382573,117890.0,117880.0,0.64394261]
[1752394971072,0.80087603,117890.0,117880.0,0.64394261]
[1752394973070,0.22303603,117890.0,117880.0,0.64394261]
[1752394975869,0.02135573,117890.0,117880.0,1.17517347]
[1752394976272,0.02135573,117890.0,117880.0,1.46637347]
[1752394976478,0.02135573,117890.0,117880.0,1.29594261]
[1752394976673,0.19094603,117890.0,117880.0,1.29594261]
[1752394976977,0.1697903,117890.0,117880.0,1.29594261]
[1752394977174,0.02112641,117890.0,117880.0,1.29594261]
[1752394984777,0.0002,117890.0,117880.0,1.29594261]
[1752394985276,0.0002,117890.0,117880.0,1.29394261]
[1752394985480,0.0002,117890.0,117880.0,1.29694261]
[1752394987281,0.02113058,117890.0,117880.0,1.29694261]
[1752394988290,0.02113058,117890.0,117880.0,1.29594261]
[1752394988579,0.02113058,117890.0,117880.0,1.29694261]
[1752394995194,0.02113058,117890.0,117880.0,1.46737347]
[1752395006803,0.0002,117890.0,117880.0,1.46737347]
[1752395008104,0.0002,117890.0,117880.0,1.29694261]
[1752395010203,0.02106328,117890.0,117880.0,1.29694261]
[1752395010702,0.02106328,117890.0,117880.0,1.29494261]
[1752395011099,0.02106328,117890.0,117880.0,1.29394261]
[1752395011304,0.02106328,117890.0,117880.0,1.29494261]
[1752395011807,0.02106328,117890.0,117880.0,0.93414261]
[1752395012008,0.02106328,117890.0,117880.0,1.29494261]
[1752395013806,0.02106328,117890.0,117880.0,1.29394261]
[1752395014007,0.02106328,117890.0,117880.0,1.29494261]
[1752395020101,0.19065358,117890.0,117880.0,1.29494261]
[1752395020401,0.02106328,117890.0,117880.0,1.29494261]
[1752395022609,0.19065358,117890.0,117880.0,1.29494261]
[1752395028719,0.46569444,117890.0,117880.0,1.34119175]
[1752395029318,0.29526358,117890.0,117880.0,1.34119175]
[1752395030217,0.29526358,117890.0,117880.0,1.51162261]
[1752395031517,0.29528023,117890.0,117880.0,1.51162261]
[1752395032610,0.29528023,117890.0,117880.0,1.22042261]
[1752395032814,0.65608023,117890.0,117880.0,1.22042261]
[1752395033813,0.29528023,117890.0,117880.0,1.22042261]
[1752395034117,0.65608023,117890.0,117880.0,1.22042261]
[1752395034517,0.29528023,117890.0,117880.0,1.22042261]
[1752395035316,0.27119023,117890.0,117880.0,1.22042261]
[1752395048128,0.27119023,117890.0,117880.0,1.04999175]
[1752395048328,0.27119023,117890.0,117880.0,1.22042261]
[1752395048729,0.29451023,117890.0,117880.0,1.22042261]
[1752395049931,0.29451023,117890.0,117880.0,1.04999175]
[1752395051329,0.22217023,117890.0,117880.0,1.04999175]
[1752395051524,0.22217023,117890.0,117880.0,1.22042261]
[1752395061733,0.58297023,117890.0,117880.0,1.22042261]
[1752395062333,0.22217023,117890.0,117880.0,1.22042261]
[1752395063240,0.58297023,117890.0,117880.0,1.22042261]
[1752395063442,0.22217023,117890.0,117880.0,1.22042261]
[1752395063640,0.58297023,117890.0,117880.0,1.22042261]
[1752395064329,0.22217023,117890.0,117880.0,1.22042261]
[1752395066843,0.58297023,117890.0,117880.0,1.22042261]
[1752395067343,0.22217023,117890.0,117880.0,1.22042261]
[1752395068738,0.05257993,117890.0,117880.0,1.22042261]
[1752395068944,0.19067023,117890.0,117880.0,1.22042261]
[1752395069251,0.02107993,117890.0,117880.0,1.22042261]
[1752395071536,0.02107993,117890.0,117880.0,1.58122261]
[1752395072343,0.02107993,117890.0,117880.0,1.22042261]
[1752395078653,0.02107993,117890.0,117880.0,1.58122261]
[1752395079857,0.19067023,117890.0,117880.0,1.22042261]
[1752395088759,0.02107993,117890.0,117880.0,1.22042261]
[1752395089162,0.02107993,117890.0,117880.0,1.58122261]
[1752395089460,0.02107993,117890.0,117880.0,3.08122261]
[1752395093658,0.02107993,117890.0,117880.0,2.72042261]
[1752395109380,0.02107993,117890.0,117880.0,3.01162261]
[1752395113586,0.02107993,117890.0,117880.0,1.87242261]
[1752395113886,0.02107993,117890.0,117880.0,1.51162261]
[1752395114084,0.02107993,117890.0,117880.0,3.37242261]
[1752395114286,0.02107993,117890.0,117880.0,3.54285347]
[1752395118992,0.02107993,117890.0,117880.0,2.04285347]
[1752395120294,0.02107993,117890.0,117880.0,1.87242261]
[1752395124496,0.02107993,117890.0,117880.0,2.04285347]
[1752395125401,0.02107993,117890.0,117880.0,1.87242261]
[1752395126800,0.02107993,117890.0,117880.0,2.04285347]
[1752395128102,0.02107993,117890.0,117880.0,1.87242261]
[1752395130403,0.02107993,117890.0,117880.0,2.04285347]
[1752395132704,0.0210548,117890.0,117880.0,2.04285347]
[1752395134005,0.0210548,117890.0,117880.0,1.87242261]
[1752395135410,0.0210548,117890.0,117880.0,2.04285347]
[1752395137010,0.0210548,117890.0,117880.0,1.87242261]
[1752395146713,0.02106318,117890.0,117880.0,1.87242261]
[1752395151909,0.02106318,117890.0,117880.0,1.29494261]
[1752395152117,0.02106318,117890.0,117880.0,1.87154261]
[1752395157717,0.02105311,117890.0,117880.0,1.87154261]
[1752395159915,0.0002,117890.0,117880.0,1.87154261]
[1752395160318,0.02105302,117890.0,117880.0,1.87154261]
[1752395177132,0.0002,117890.0,117880.0,1.87154261]
[1752395177333,0.02098079,117890.0,117880.0,1.87154261]
[1752395177926,0.02098079,117890.0,117880.0,0.95408089]
[1752395178233,0.02098079,117890.0,117880.0,1.51058261]
[1752395178830,0.02098079,117890.0,117880.0,1.51054261]
[1752395179834,0.02098079,117890.0,117880.0,0.93414261]
[1752395180035,0.02098079,117890.0,117880.0,1.51106261]
[1752395180234,0.02098079,117890.0,117880.0,3.01106261]
[1752395182530,0.02098079,117890.0,117880.0,3.37186261]
[1752395182730,0.02098079,117890.0,117880.0,3.01106261]
[1752395186637,0.02098451,117890.0,117880.0,3.01106261]
[1752395190342,0.02098451,117890.0,117880.0,3.37186261]
[1752395193248,0.02098451,117890.0,117880.0,3.01106261]
[1752395195050,0.02098451,117890.0,117880.0,3.37186261]
[1752395195351,0.02098451,117890.0,117880.0,3.01106261]
[1752395196450,0.02098451,117890.0,117880.0,3.37186261]
[1752395196650,0.02098451,117890.0,117880.0,3.01106261]
[1752395197548,0.02098451,117890.0,117880.0,3.37186261]
[1752395200259,0.02098451,117890.0,117880.0,3.01106261]
[1752395200554,0.02098451,117890.0,117880.0,3.37186261]
[1752395205456,0.02098451,117890.0,117880.0,2.79494261]
[1752395205760,0.02098451,117890.0,117880.0,3.01058261]
[1752395206260,0.02098451,117890.0,117880.0,3.37138261]
[1752395206458,0.02098451,117890.0,117880.0,3.01058261]
[1752395208062,0.02098451,117890.0,117880.0,3.37138261]
[1752395208459,0.02098451,117890.0,117880.0,3.38933052]
[1752395208660,0.02098451,117890.0,117880.0,3.02853052]
[1752395211864,0.02098451,117890.0,117880.0,3.38933052]
[1752395212064,0.02098451,117890.0,117880.0,3.02853052]
[1752395214662,0.02098451,117890.0,117880.0,3.38933052]
[1752395220669,0.02098451,117890.0,117880.0,3.02853052]
[1752395221167,0.02098451,117890.0,117880.0,3.38933052]
[1752395221569,0.02098451,117890.0,117880.0,3.02853052]
[1752395234081,0.02098451,117890.0,117880.0,3.02845052]
[1752395258800,0.02098451,117890.0,117880.0,2.45209052]
[1752395259001,0.02098451,117890.0,117880.0,3.02837052]
[1752395266209,0.02098451,117890.0,117880.0,2.6875088]
[1752395266409,0.02098451,117890.0,117880.0,3.02837052]
[1752395272414,0.02098451,117890.0,117880.0,2.45209052]
[1752395272713,0.02098451,117890.0,117880.0,3.02833052]
[1752395273908,0.02098451,117890.0,117880.0,2.6874688]
[1752395274114,0.02098451,117890.0,117880.0,3.02833052]
[1752395290630,0.02098451,117890.0,117880.0,3.38913052]
[1752395290830,0.02098451,117890.0,117880.0,3.02833052]
[1752395300934,0.02098451,117890.0,117880.0,3.00558052]
[1752395302939,0.02098451,117890.0,117880.0,3.02829052]
[1752395308740,0.02098451,117890.0,117880.0,2.6874288]
[1752395308935,0.02098451,117890.0,117880.0,3.02829052]
[1752395320953,0.02098451,117890.0,117880.0,2.6874288]
[1752395321154,0.02098451,117890.0,117880.0,3.02829052]
[1752395322255,0.02098451,117890.0,117880.0,2.45205052]
[1752395322453,0.02098451,117890.0,117880.0,2.6872288]
[1752395322650,0.02098451,117890.0,117880.0,3.02809052]
[1752395322949,0.02098451,117890.0,117880.0,2.45205052]
[1752395323154,0.02098451,117890.0,117880.0,3.02809052]
[1752395324153,0.19057481,117890.0,117880.0,3.02809052]
[1752395324354,0.02098451,117890.0,117880.0,3.02809052]
[1752395328656,0.02098451,117890.0,117880.0,3.02790709]
[1752395329858,0.02098451,117890.0,117880.0,2.68704537]
[1752395330158,0.02098451,117890.0,117880.0,3.02790709]
[1752395332656,0.39412567,117890.0,117880.0,1.35747623]
[1752395332860,0.39412567,117890.0,117880.0,1.33971175]
[1752395333256,0.22369481,117890.0,117880.0,1.33971175]
[1752395333461,0.22369481,117890.0,117880.0,1.51014261]
[1752395339266,0.05410451,117890.0,117880.0,1.51014261]
[1752395339766,0.22369481,117890.0,117880.0,1.51014261]
[1752395340566,0.22369481,117890.0,117880.0,0.93410261]
[1752395340762,0.22369481,117890.0,117880.0,1.51010261]
[1752395342067,0.02098451,117890.0,117880.0,1.51010261]
[1752395342462,0.19057481,117890.0,117880.0,1.51010261]
[1752395345272,0.02098451,117890.0,117880.0,1.51010261]
[1752395345772,0.02098451,117890.0,117880.0,1.68053347]
[1752395347170,0.02098451,117890.0,117880.0,2.04133347]
[1752395349267,0.02098451,117890.0,117880.0,2.04033347]
[1752395349478,0.61515,117910.0,117900.0,0.2028559]
[1752395349675,0.61515,117910.0,117900.0,1.76557762]
[1752395349973,0.6499487,117910.0,117900.0,1.76557762]
[1752395350364,0.3608,117910.0,117900.0,1.93600848]
[1752395350568,0.3608,117910.0,117900.0,1.76557762]
[1752395350971,0.3618,117910.0,117900.0,1.76557762]
[1752395351574,0.001,117910.0,117900.0,1.76557762]
[1752395352075,0.001,117910.0,117900.0,2.41757762]
[1752395352470,0.6622422,117920.0,117910.0,0.1695616]
[1752395352671,0.7165922,117920.0,117910.0,0.44213246]
[1752395352880,0.6318182,117920.0,117910.0,0.44213246]
[1752395354076,0.6328182,117920.0,117910.0,0.44213246]
[1752395354772,0.6328182,117920.0,117910.0,0.61256332]
[1752395357378,0.6328182,117920.0,117910.0,0.44213246]
[1752395357780,0.6328182,117920.0,117910.0,0.61256332]
[1752395360881,0.6328182,117920.0,117910.0,0.44213246]
[1752395361481,0.6534499,117920.0,117910.0,0.44213246]
[1752395363972,0.6534499,117920.0,117910.0,0.61256332]
[1752395364382,0.6534499,117920.0,117910.0,0.44213246]
[1752395366881,0.6534499,117920.0,117910.0,0.61256332]
[1752395367082,0.6536499,117920.0,117910.0,0.61256332]
[1752395367681,0.6536499,117920.0,117910.0,0.44213246]
[1752395372089,0.6536499,117920.0,117910.0,0.2717016]
[1752395372280,0.6536499,117920.0,117910.0,0.44213246]
[1752395374282,0.6536499,117920.0,117910.0,0.61256332]
[1752395379388,0.2928499,117920.0,117910.0,0.61256332]
[1752395379589,0.6536499,117920.0,117910.0,0.61256332]
[1752395383489,0.2928499,117920.0,117910.0,0.61256332]
[1752395383686,0.6536499,117920.0,117910.0,0.61256332]
[1752395388895,0.2928499,117920.0,117910.0,0.61256332]
[1752395389195,0.6536499,117920.0,117910.0,0.61256332]
[1752395389896,0.6536499,117920.0,117910.0,0.2717016]
[1752395390196,0.6536499,117920.0,117910.0,0.61256332]
[1752395394402,0.2928499,117920.0,117910.0,0.61256332]
[1752395394603,0.6536499,117920.0,117910.0,0.61256332]
[1752395394903,0.6536499,117920.0,117910.0,0.44213246]
[1752395395907,0.6536499,117920.0,117910.0,0.61256332]
[1752395402509,0.71447643,117920.0,117910.0,0.61256332]
[1752395412326,0.6536499,117920.0,117910.0,0.61256332]
[1752395418031,0.6536499,117920.0,117910.0,0.2717016]
[1752395418232,0.6536499,117920.0,117910.0,0.44213246]
[1752395418834,0.6536499,117920.0,117910.0,0.61256332]
[1752395419332,0.6536499,117920.0,117910.0,0.44213246]
[1752395420233,0.6536499,117920.0,117910.0,0.61256332]
[1752395432345,0.6536499,117920.0,117910.0,0.44213246]
[1752395433445,0.6536499,117920.0,117910.0,0.2717016]
[1752395433645,0.6536499,117920.0,117910.0,0.44213246]
[1752395441453,0.6536499,117920.0,117910.0,0.61256332]
[1752395442360,0.71447643,117920.0,117910.0,0.61256332]
[1752395449264,0.6536499,117920.0,117910.0,0.44213246]
[1752395463872,0.65366505,117920.0,117910.0,0.44213246]
[1752395468174,0.65366505,117920.0,117910.0,0.61256332]
[1752395473172,0.29286505,117920.0,117910.0,0.61256332]
[1752395473376,0.65366505,117920.0,117910.0,0.61256332]
[1752395490588,0.65566505,117920.0,117910.0,0.61256332]
[1752395491087,0.65466505,117920.0,117910.0,0.61256332]
[1752395491289,0.65566505,117920.0,117910.0,0.61256332]
[1752395492389,0.71649158,117920.0,117910.0,0.61256332]
[1752395496789,0.35569158,117920.0,117910.0,0.61256332]
[1752395496990,0.71649158,117920.0,117910.0,0.61256332]
[1752395502493,0.65566505,117920.0,117910.0,0.61256332]
[1752395510298,0.65566505,117920.0,117910.0,0.44213246]
[1752395512303,0.65566505,117920.0,117910.0,0.61256332]
[1752395516909,0.65566505,117920.0,117910.0,0.44213246]
[1752395532323,0.71649158,117920.0,117910.0,0.44213246]
[1752395536232,0.65566505,117920.0,117910.0,0.44213246]
[1752395539736,0.71649158,117920.0,117910.0,0.44213246]
[1752395542437,0.65566505,117920.0,117910.0,0.44213246]
[1752395542733,0.65566505,117920.0,117910.0,0.27357086]
[1752395542939,0.65566505,117920.0,117910.0,0.44313236]
[1752395552541,0.65566505,117920.0,117910.0,0.2727015]
[1752395552746,0.65566505,117920.0,117910.0,0.27357086]
[1752395554947,0.65566505,117920.0,117910.0,0.44313236]
[1752395555139,0.65566505,117920.0,117910.0,0.27357086]
[1752395556244,0.65566505,117920.0,117910.0,0.10314]
[1752395556450,0.65566505,117920.0,117910.0,0.27357086]
[1752395562352,0.65566505,117920.0,117910.0,0.10314]
[1752395562652,0.65566505,117920.0,117910.0,0.27357086]
[1752395563849,0.29486505,117920.0,117910.0,0.27357086]
[1752395564048,0.65566505,117920.0,117910.0,0.27357086]
[1752395577262,0.65566505,117920.0,117910.0,0.44313236]
[1752395579363,0.71649158,117920.0,117910.0,0.44313236]
[1752395579665,0.71649158,117920.0,117910.0,0.27357086]
[1752395580861,0.71609506,117920.0,117910.0,0.27357086]
[1752395582168,0.71609506,117920.0,117910.0,0.10314]
[1752395582369,0.65526853,117920.0,117910.0,0.27357086]
[1752395582568,0.73130169,117920.0,117910.0,0.27357086]
[1752395583969,0.79222759,117920.0,117910.0,0.27357086]
[1752395584164,0.71619443,117920.0,117910.0,0.27357086]
[1752395590576,0.65526853,117920.0,117910.0,0.27357086]
[1752395591772,0.73130169,117920.0,117910.0,0.27357086]
[1752395592377,0.792246,117920.0,117910.0,0.27357086]
[1752395592576,0.71621284,117920.0,117910.0,0.27357086]
[1752395593778,0.71621284,117920.0,117910.0,0.44313236]
[1752395604996,0.71621284,117920.0,117910.0,0.2727015]
[1752395605197,0.71621284,117920.0,117910.0,0.27357086]
[1752395606995,0.8866437,117920.0,117910.0,0.17043086]
[1752395609799,0.8866437,117920.0,117910.0,0.27445086]
[1752395613902,0.82569939,117920.0,117910.0,0.27445086]
[1752395617201,0.8866437,117920.0,117910.0,0.27445086]
[1752395620408,1.4617237,117920.0,117910.0,0.27445086]
[1752395625203,1.29129284,117920.0,117910.0,0.27445086]
[1752395626210,1.65209284,117920.0,117910.0,0.27445086]
[1752395628615,1.65209284,117920.0,117910.0,0.05466]
[1752395628811,1.65209284,117920.0,117910.0,0.22509086]
[1752395629312,1.8225237,117920.0,117910.0,0.27169086]
[1752395629614,1.8225237,117920.0,117910.0,0.10126]
[1752395629912,1.8225237,117920.0,117910.0,0.22509086]
[1752395632415,1.76157939,117920.0,117910.0,0.22509086]
[1752395635414,1.76157939,117920.0,117910.0,0.27169086]
[1752395635717,1.76143635,117920.0,117910.0,0.27169086]
[1752395638519,1.76143635,117920.0,117910.0,0.22509086]
[1752395644416,1.59100549,117920.0,117910.0,0.22509086]
[1752395645223,1.58900549,117920.0,117910.0,0.22509086]
[1752395645424,1.59200549,117920.0,117910.0,0.22509086]
[1752395646224,1.76243635,117920.0,117910.0,0.22509086]
[1752395646426,1.76143635,117920.0,117910.0,0.22509086]
[1752395646924,1.76043635,117920.0,117910.0,0.22509086]
[1752395649322,1.59000549,117920.0,117910.0,0.22509086]
[1752395649521,1.76043635,117920.0,117910.0,0.22509086]
[1752395649717,1.59000549,117920.0,117910.0,0.22509086]
[1752395650019,1.76043635,117920.0,117910.0,0.22509086]
[1752395650525,1.59000549,117920.0,117910.0,0.22509086]
[1752395652829,1.76043635,117920.0,117910.0,0.22509086]
[1752395654929,1.73615635,117920.0,117910.0,0.20166086]
[1752395656930,1.76107635,117920.0,117910.0,0.22539086]
[1752395662936,1.73615635,117920.0,117910.0,0.20166086]
[1752395663930,1.73615635,117920.0,117900.0,0.18804524]
[1752395664132,0.77944236,117910.0,117900.0,0.0002]
[1752395664333,0.2482259,117900.0,117890.0,0.46280176]
[1752395664532,1.20425319,117900.0,117890.0,0.46260176]
[1752395664934,1.22917319,117900.0,117890.0,0.48633176]
[1752395667029,1.22917319,117900.0,117890.0,0.48833176]
[1752395669943,1.22917319,117900.0,117890.0,0.49033176]
[1752395670642,1.22917319,117900.0,117890.0,0.66076262]
[1752395675250,1.22917319,117900.0,117890.0,0.3199009]
[1752395675547,1.22917319,117900.0,117890.0,0.66076262]
[1752395683152,0.86837319,117900.0,117890.0,0.66076262]
[1752395683358,1.22917319,117900.0,117890.0,0.66076262]
[1752395684153,0.86837319,117900.0,117890.0,0.66076262]
[1752395684457,1.22917319,117900.0,117890.0,0.66076262]
[1752395686259,0.86837319,117900.0,117890.0,0.66076262]
[1752395686460,1.22917319,117900.0,117890.0,0.66076262]
[1752395696069,0.65425319,117900.0,117890.0,0.66076262]
[1752395696361,0.62933319,117900.0,117890.0,0.66076262]
[1752395696567,1.20481319,117900.0,117890.0,0.66076262]
[1752395697562,0.45975729,117900.0,117890.0,0.66076262]
[1752395697866,1.20493319,117900.0,117890.0,0.66076262]
[1752395699165,1.22840319,117900.0,117890.0,0.66076262]
[1752395702168,1.22851734,117900.0,117890.0,0.66076262]
[1752395706171,0.86771734,117900.0,117890.0,0.66076262]
[1752395706373,1.22851734,117900.0,117890.0,0.66076262]
[1752395720278,1.22851734,117900.0,117890.0,0.44200176]
[1752395720579,1.22851734,117900.0,117890.0,0.41014176]
[1752395722282,1.22851734,117900.0,117890.0,0.45881176]
[1752395731285,1.22851734,117900.0,117890.0,0.49168176]
[1752395745401,1.22851734,117900.0,117890.0,0.66211262]
[1752395745599,1.22851734,117900.0,117890.0,0.49168176]
[1752395747312,1.22851734,117900.0,117890.0,0.66211262]
[1752395748917,1.22851734,117900.0,117890.0,0.49168176]
[1752395755122,1.20504734,117900.0,117890.0,0.46795176]
[1752395756925,1.22976734,117900.0,117890.0,0.49188176]
[1752395761230,0.86896734,117900.0,117890.0,0.49188176]
[1752395761426,1.22976734,117900.0,117890.0,0.49188176]
[1752395783750,1.2095459,117900.0,117890.0,0.49188176]
[1752395783951,1.22969089,117900.0,117890.0,0.49188176]
[1752395793567,0.86889089,117900.0,117890.0,0.49188176]
[1752395793766,1.22969089,117900.0,117890.0,0.49188176]
[1752395796965,1.20497089,117900.0,117890.0,0.46795176]
[1752395798968,1.22928089,117900.0,117890.0,0.49157176]
[1752395800168,0.86848089,117900.0,117890.0,0.49157176]
[1752395800369,1.22928089,117900.0,117890.0,0.49157176]
[1752395810985,1.20497089,117900.0,117890.0,0.46795176]
[1752395812984,1.22928089,117900.0,117890.0,0.49157176]
[1752395823697,1.22928089,117900.0,117890.0,0.66200262]
[1752395828507,1.22928089,117900.0,117890.0,0.49157176]
[1752395830208,1.22928089,117900.0,117890.0,0.66200262]
[1752395838917,1.20497089,117900.0,117890.0,0.63838262]
[1752395841014,1.22987089,117900.0,117890.0,0.66119262]
[1752395844322,0.86907089,117900.0,117890.0,0.66119262]
[1752395844621,1.22987089,117900.0,117890.0,0.66119262]
[1752395851129,0.86907089,117900.0,117890.0,0.66119262]
[1752395851329,1.22987089,117900.0,117890.0,0.66119262]
[1752395852928,1.22987089,117900.0,117890.0,0.49076176]
[1752395869539,1.22987089,117900.0,117890.0,0.3203309]
[1752395869740,1.22987089,117900.0,117890.0,0.49076176]
[1752395884948,1.20497089,117900.0,117890.0,0.46795176]
[1752395886851,1.20497089,117900.0,117890.0,0.2975209]
[1752395887051,1.22820089,117900.0,117890.0,0.3213009]
[1752395887254,1.39863175,117900.0,117890.0,0.49173176]
[1752395887447,1.39863175,117900.0,117890.0,0.2726309]
[1752395887448,1.75943175,117900.0,117890.0,0.2726309]
[1752395887848,1.75943175,117900.0,117890.0,0.44306176]
[1752395889155,1.75943175,117900.0,117890.0,0.41019176]
[1752395891060,1.75943175,117900.0,117890.0,0.36779426]
[1752395891255,1.75943175,117900.0,117890.0,0.17443086]
[1752395891459,1.75943175,117900.0,117890.0,0.34402116]
[1752395891961,1.75943175,117900.0,117890.0,0.1735903]
[1752395892161,1.75943175,117900.0,117890.0,0.34402116]
[1752395894864,1.75943175,117900.0,117890.0,0.36780116]
[1752395900467,1.75943175,117900.0,117890.0,0.02778]
[1752395900667,1.75943175,117900.0,117890.0,0.19821086]
[1752395901769,1.75943175,117900.0,117890.0,0.36780116]
[1752395902170,1.75943175,117900.0,117890.0,0.1973703]
[1752395902371,1.75943175,117900.0,117890.0,0.36780116]
[1752395906979,1.75943175,117900.0,117890.0,0.36580116]
[1752395907275,1.75943175,117900.0,117890.0,0.41301116]
[1752395908078,1.75943175,117900.0,117890.0,0.19421086]
[1752395909679,1.75943175,117900.0,117890.0,0.02378]
[1752395909879,1.75943175,117900.0,117890.0,0.19421086]
[1752395911378,1.75943175,117900.0,117890.0,0.02378]
[1752395911577,1.75943175,117900.0,117890.0,0.19421086]
[1752395918683,1.75943175,117900.0,117890.0,0.02378]
[1752395918885,1.75943175,117900.0,117890.0,0.19421086]
[1752395922293,1.58900089,117900.0,117890.0,0.19421086]
[1752395922492,1.75943175,117900.0,117890.0,0.19421086]
[1752395924093,1.58900089,117900.0,117890.0,0.19421086]
[1752395924293,1.75943175,117900.0,117890.0,0.19421086]
[1752395925089,1.75943175,117900.0,117890.0,0.36380116]
[1752395931894,1.75943175,117900.0,117890.0,0.44313116]
[1752395932101,1.75943175,117900.0,117890.0,0.2727003]
[1752395932296,1.75943175,117900.0,117890.0,0.44313116]
[1752395934200,1.75943175,117900.0,117890.0,0.2727003]
[1752395934399,1.75943175,117900.0,117890.0,0.44313116]
[1752395936802,1.58900089,117900.0,117890.0,0.44313116]
[1752395937001,1.75943175,117900.0,117890.0,0.44313116]
[1752395940201,1.76075606,117900.0,117890.0,0.44313116]
[1752395944904,1.73928676,117900.0,117890.0,0.44313116]
[1752395945104,1.76076073,117900.0,117890.0,0.44313116]
[1752395945506,1.76076073,117900.0,117890.0,0.2243603]
[1752395945805,1.76076073,117900.0,117890.0,0.39479116]
[1752395950306,1.76076073,117900.0,117890.0,0.2243603]
[1752395950506,1.76076073,117900.0,117890.0,0.39479116]
[1752395952609,1.82170504,117900.0,117890.0,0.39479116]
[1752395956310,1.76076073,117900.0,117890.0,0.17043086]
[1752395956908,1.76076073,117900.0,117890.0,0.19333086]
[1752395958715,1.76076073,117900.0,117890.0,0.36292116]